[Event "Titled Tuesday Blitz November 16 2021"]
[White "Sorokin, Aleksey"]
[Black "Czopor, Maciej"]
[WhiteFideId "24176460"]
[BlackFideId "21805431"]
[WhiteElo "2476"]
[BlackElo "1999"]
[Result "1-0"]
[Round "03"]
[TimeControl "180+1"]
[Date "2021.11.16"]
[WhiteClock "0:00:08"]
[BlackClock "0:00:08"]

1. e4 {[%clk 0:03:00]}  c5 {[%clk 0:02:47]} 2. Nf3 {[%clk 0:03:00]}  e6 {[%clk 0:02:48]} 3. d4 {[%clk 0:03:00]}  cxd4 {[%clk 0:02:49]} 4. Nxd4 {[%clk 0:03:00]}  Nc6 {[%clk 0:02:50]} 5. Nc3 {[%clk 0:03:00]}  Qc7 {[%clk 0:02:50]} 6. Be3 {[%clk 0:02:58]}  a6 {[%clk 0:02:50]} 7. Qf3 {[%clk 0:02:57]}  Nf6 {[%clk 0:02:49]} 8. O-O-O {[%clk 0:02:54]}  Ne5 {[%clk 0:02:49]} 9. Qg3 {[%clk 0:02:53]}  b5 {[%clk 0:02:49]} 10. f4 {[%clk 0:02:51]}  Neg4 {[%clk 0:02:43]} 11. Bg1 {[%clk 0:02:50]}  h5 {[%clk 0:02:27]} 12. h3 {[%clk 0:02:44]}  b4 {[%clk 0:02:26]} 13. hxg4 {[%clk 0:01:26]}  bxc3 {[%clk 0:02:25]} 14. Qxc3 {[%clk 0:01:18]}  Qxc3 {[%clk 0:02:21]} 15. bxc3 {[%clk 0:01:19]}  Ba3+ {[%clk 0:01:27]} 16. Kd2 {[%clk 0:01:17]}  Nxe4+ {[%clk 0:01:27]} 17. Kd3 {[%clk 0:01:17]}  Nc5+ {[%clk 0:01:26]} 18. Ke3 {[%clk 0:01:12]}  h4 {[%clk 0:01:15]} 19. Bf2 {[%clk 0:01:09]}  Bb7 {[%clk 0:01:10]} 20. Rxh4 {[%clk 0:01:07]}  Rxh4 {[%clk 0:01:10]} 21. Bxh4 {[%clk 0:01:07]}  Rc8 {[%clk 0:01:10]} 22. Rb1 {[%clk 0:01:03]}  Bd5 {[%clk 0:00:59]} 23. c4 {[%clk 0:01:00]}  Ba8 {[%clk 0:00:50]} 24. Be1 {[%clk 0:01:00]}  Ne4 {[%clk 0:00:32]} 25. Bd3 {[%clk 0:00:46]}  Nd6 {[%clk 0:00:30]} 26. c5 {[%clk 0:00:44]}  Bxc5 {[%clk 0:00:29]} 27. Bxa6 {[%clk 0:00:42]}  Rd8 {[%clk 0:00:13]} 28. Ba5 {[%clk 0:00:37]}  Bb7 {[%clk 0:00:02]} 29. Bxd8 {[%clk 0:00:24]}  Bxa6 {[%clk 0:00:02]} 30. Rb8 {[%clk 0:00:14]}  Nc8 {[%clk 0:00:01]} 31. Bc7 {[%clk 0:00:12]}  d5 {[%clk 0:00:02]} 32. Be5 {[%clk 0:00:09]}  f6 {[%clk 0:00:02]} 33. Bc7 {[%clk 0:00:09]}  Kd7 {[%clk 0:00:02]} 34. Ba5 {[%clk 0:00:09]}  e5 {[%clk 0:00:03]} 35. fxe5 {[%clk 0:00:09]}  fxe5 {[%clk 0:00:04]} 36. Bc3 {[%clk 0:00:09]}  exd4+ {[%clk 0:00:03]} 37. Bxd4 {[%clk 0:00:10]}  Bd6 {[%clk 0:00:04]} 38. Ra8 {[%clk 0:00:09]}  Bc4 {[%clk 0:00:04]} 39. Bxg7 {[%clk 0:00:08]}  Ne7 {[%clk 0:00:02]} 40. Bd4 {[%clk 0:00:07]}  Ke6 {[%clk 0:00:02]} 41. a4 {[%clk 0:00:06]}  Nc6 {[%clk 0:00:03]} 42. a5 {[%clk 0:00:05]}  Bb4 {[%clk 0:00:02]} 43. a6 {[%clk 0:00:05]}  Nxd4 {[%clk 0:00:01]} 44. Kxd4 {[%clk 0:00:05]}  Be1 {[%clk 0:00:02]} 45. a7 {[%clk 0:00:05]}  Bf2+ {[%clk 0:00:03]} 46. Kc3 {[%clk 0:00:05]}  Kd7 {[%clk 0:00:02]} 47. Rh8 {[%clk 0:00:03]}  Bxa7 {[%clk 0:00:03]} 48. Rh7+ {[%clk 0:00:03]}  Ke6 {[%clk 0:00:04]} 49. Rxa7 {[%clk 0:00:04]}  Bf1 {[%clk 0:00:05]} 50. Rg7 {[%clk 0:00:04]}  Bxg2 {[%clk 0:00:06]} 51. Kd4 {[%clk 0:00:04]}  Be4 {[%clk 0:00:05]} 52. c4 {[%clk 0:00:03]}  Kd6 {[%clk 0:00:05]} 53. cxd5 {[%clk 0:00:02]}  Bxd5 {[%clk 0:00:06]} 54. Rg6+ {[%clk 0:00:03]}  Be6 {[%clk 0:00:07]} 55. Ke4 {[%clk 0:00:03]}  Ke7 {[%clk 0:00:06]} 56. Ke5 {[%clk 0:00:03]}  Bf7 {[%clk 0:00:07]} 57. Rg7 {[%clk 0:00:04]}  Kf8 {[%clk 0:00:08]} 58. Kf6 {[%clk 0:00:05]}  Bd5 {[%clk 0:00:08]} 59. g5 {[%clk 0:00:05]}  Bc4 {[%clk 0:00:08]} 60. g6 {[%clk 0:00:06]}  Bd3 {[%clk 0:00:08]} 61. Re7 {[%clk 0:00:07]}  Bc4 {[%clk 0:00:08]} 62. g7+ {[%clk 0:00:07]}  Kg8 {[%clk 0:00:08]} 63. Re8+ {[%clk 0:00:08]}  Kh7 {[%clk 0:00:08]} 64. Rh8# {[%clk 0:00:08]} 1-0


[Site "https://www.chess.com"]

[Event "Titled Tuesday Blitz November 16 2021"]
[White "Svane, Frederik"]
[Black "Lewtak, Damian"]
[WhiteFideId "12923044"]
[BlackFideId "1141724"]
[WhiteElo "2459"]
[BlackElo "2203"]
[Result "0-1"]
[Round "03"]
[TimeControl "180+1"]
[Date "2021.11.16"]
[WhiteClock "0:00:06"]
[BlackClock "0:00:21"]

1. c4 {[%clk 0:03:00]}  g6 {[%clk 0:02:56]} 2. Nc3 {[%clk 0:03:00]}  Bg7 {[%clk 0:02:56]} 3. g3 {[%clk 0:03:01]}  c5 {[%clk 0:02:56]} 4. Bg2 {[%clk 0:03:02]}  e6 {[%clk 0:02:55]} 5. d3 {[%clk 0:03:01]}  Ne7 {[%clk 0:02:55]} 6. h4 {[%clk 0:02:58]}  h5 {[%clk 0:02:55]} 7. Bg5 {[%clk 0:02:58]}  Nbc6 {[%clk 0:02:53]} 8. Nh3 {[%clk 0:02:48]}  d6 {[%clk 0:02:50]} 9. O-O {[%clk 0:02:47]}  Rb8 {[%clk 0:02:45]} 10. Qd2 {[%clk 0:02:42]}  a6 {[%clk 0:02:42]} 11. a4 {[%clk 0:02:42]}  Qc7 {[%clk 0:02:42]} 12. Ne4 {[%clk 0:02:31]}  Ng8 {[%clk 0:02:27]} 13. Nf4 {[%clk 0:02:09]}  Nd4 {[%clk 0:02:17]} 14. e3 {[%clk 0:02:06]}  Nb3 {[%clk 0:02:08]} 15. Qc2 {[%clk 0:02:01]}  Nxa1 {[%clk 0:02:08]} 16. Rxa1 {[%clk 0:02:02]}  f6 {[%clk 0:01:57]} 17. Nxg6 {[%clk 0:02:00]}  Rh7 {[%clk 0:01:42]} 18. d4 {[%clk 0:01:50]}  fxg5 {[%clk 0:01:37]} 19. dxc5 {[%clk 0:01:50]}  dxc5 {[%clk 0:01:34]} 20. Rd1 {[%clk 0:01:49]}  Bf8 {[%clk 0:01:23]} 21. Nxf8 {[%clk 0:01:26]}  Kxf8 {[%clk 0:01:23]} 22. Nxg5 {[%clk 0:01:27]}  Rg7 {[%clk 0:01:19]} 23. Bh3 {[%clk 0:01:15]}  Ke7 {[%clk 0:01:16]} 24. Qc3 {[%clk 0:00:46]}  Nf6 {[%clk 0:01:13]} 25. e4 {[%clk 0:00:41]}  e5 {[%clk 0:01:07]} 26. Bxc8 {[%clk 0:00:34]}  Rxc8 {[%clk 0:01:07]} 27. f4 {[%clk 0:00:35]}  Rd8 {[%clk 0:00:58]} 28. Rxd8 {[%clk 0:00:33]}  Qxd8 {[%clk 0:00:52]} 29. Qxe5+ {[%clk 0:00:33]}  Kd7 {[%clk 0:00:52]} 30. Kg2 {[%clk 0:00:13]}  Qe7 {[%clk 0:00:46]} 31. Qf5+ {[%clk 0:00:12]}  Kc6 {[%clk 0:00:38]} 32. e5 {[%clk 0:00:12]}  Ng4 {[%clk 0:00:32]} 33. Kh3 {[%clk 0:00:12]}  Qd7 {[%clk 0:00:29]} 34. Ne6 {[%clk 0:00:09]}  Qd1 {[%clk 0:00:22]} 35. Qe4+ {[%clk 0:00:09]}  Kb6 {[%clk 0:00:20]} 36. Nxg7 {[%clk 0:00:06]}  Nf2+ {[%clk 0:00:19]} 37. Kh2 {[%clk 0:00:07]}  Nxe4 {[%clk 0:00:20]} 38. Nf5 {[%clk 0:00:05]}  Qe2+ {[%clk 0:00:20]} 39. Kh3 {[%clk 0:00:05]}  Qf1+ {[%clk 0:00:20]} 40. Kh2 {[%clk 0:00:06]}  Qf2+ {[%clk 0:00:21]} 41. Kh3 {[%clk 0:00:06]}  Qg1 {[%clk 0:00:21]} 0-1


[Site "https://www.chess.com"]

[Event "Titled Tuesday Blitz November 16 2021"]
[White "Tillyaev, Ulugbek"]
[Black "Afanasiev, Nikita"]
[WhiteFideId "14202441"]
[BlackFideId "24183555"]
[WhiteElo "2341"]
[BlackElo "2577"]
[Result "1-0"]
[Round "03"]
[TimeControl "180+1"]
[Date "2021.11.16"]
[WhiteClock "0:00:16"]
[BlackClock "0:00:09"]

1. e4 {[%clk 0:03:00]}  e5 {[%clk 0:02:57]} 2. Nf3 {[%clk 0:03:00]}  Nc6 {[%clk 0:02:56]} 3. Bb5 {[%clk 0:02:59]}  a6 {[%clk 0:02:56]} 4. Ba4 {[%clk 0:02:57]}  d6 {[%clk 0:02:56]} 5. O-O {[%clk 0:02:55]}  Bd7 {[%clk 0:02:56]} 6. d4 {[%clk 0:02:54]}  b5 {[%clk 0:02:23]} 7. Bb3 {[%clk 0:02:52]}  Nxd4 {[%clk 0:02:23]} 8. Nxd4 {[%clk 0:02:49]}  exd4 {[%clk 0:02:24]} 9. c3 {[%clk 0:02:48]}  dxc3 {[%clk 0:02:21]} 10. Qh5 {[%clk 0:02:46]}  Qf6 {[%clk 0:01:59]} 11. Nxc3 {[%clk 0:02:42]}  Qg6 {[%clk 0:01:58]} 12. Qxg6 {[%clk 0:01:33]}  hxg6 {[%clk 0:01:55]} 13. a4 {[%clk 0:01:33]}  Rc8 {[%clk 0:01:40]} 14. Re1 {[%clk 0:01:12]}  Rh5 {[%clk 0:01:27]} 15. Bf4 {[%clk 0:01:05]}  Ne7 {[%clk 0:01:03]} 16. axb5 {[%clk 0:00:59]}  axb5 {[%clk 0:00:45]} 17. e5 {[%clk 0:00:58]}  b4 {[%clk 0:00:42]} 18. exd6 {[%clk 0:00:38]}  bxc3 {[%clk 0:00:41]} 19. dxe7 {[%clk 0:00:38]}  Bxe7 {[%clk 0:00:41]} 20. bxc3 {[%clk 0:00:38]}  Kf8 {[%clk 0:00:37]} 21. Ra7 {[%clk 0:00:38]}  Rc5 {[%clk 0:00:36]} 22. Be5 {[%clk 0:00:32]}  Bf6 {[%clk 0:00:31]} 23. Bd6+ {[%clk 0:00:24]}  cxd6 {[%clk 0:00:29]} 24. Rxd7 {[%clk 0:00:25]}  R5c7 {[%clk 0:00:26]} 25. Rxd6 {[%clk 0:00:24]}  Rxc3 {[%clk 0:00:25]} 26. Ba4 {[%clk 0:00:20]}  R3c7 {[%clk 0:00:24]} 27. g3 {[%clk 0:00:20]}  Bc3 {[%clk 0:00:22]} 28. Red1 {[%clk 0:00:19]}  Bf6 {[%clk 0:00:18]} 29. Bb3 {[%clk 0:00:19]}  Be7 {[%clk 0:00:16]} 30. Rd7 {[%clk 0:00:18]}  g5 {[%clk 0:00:14]} 31. Rxc7 {[%clk 0:00:18]}  Rxc7 {[%clk 0:00:14]} 32. h3 {[%clk 0:00:19]}  g6 {[%clk 0:00:14]} 33. Kg2 {[%clk 0:00:19]}  Rc3 {[%clk 0:00:13]} 34. Rb1 {[%clk 0:00:18]}  Bc5 {[%clk 0:00:13]} 35. Bd1 {[%clk 0:00:18]}  Rd3 {[%clk 0:00:13]} 36. Be2 {[%clk 0:00:17]}  Rd2 {[%clk 0:00:13]} 37. Kf1 {[%clk 0:00:18]}  Rc2 {[%clk 0:00:12]} 38. Rd1 {[%clk 0:00:17]}  Rb2 {[%clk 0:00:12]} 39. Rd5 {[%clk 0:00:17]}  f6 {[%clk 0:00:11]} 40. Rxc5 {[%clk 0:00:17]}  Rb1+ {[%clk 0:00:10]} 41. Kg2 {[%clk 0:00:16]}  Rb2 {[%clk 0:00:11]} 42. Bd3 {[%clk 0:00:16]}  f5 {[%clk 0:00:09]} 43. Bxf5 {[%clk 0:00:16]} 1-0


[Site "https://www.chess.com"]

[Event "Titled Tuesday Blitz November 16 2021"]
[White "Triapishko, Alexandr"]
[Black "Liyanage, Ranindu Dilshan"]
[WhiteFideId "14122286"]
[BlackFideId "9915834"]
[WhiteElo "2479"]
[BlackElo "1839"]
[Result "1-0"]
[Round "03"]
[TimeControl "180+1"]
[Date "2021.11.16"]
[WhiteClock "0:00:08"]
[BlackClock "0:00:04"]

1. d4 {[%clk 0:02:45]}  Nf6 {[%clk 0:02:58]} 2. c4 {[%clk 0:02:43]}  e6 {[%clk 0:02:58]} 3. Nf3 {[%clk 0:02:42]}  d5 {[%clk 0:02:58]} 4. Nc3 {[%clk 0:02:39]}  Bb4 {[%clk 0:02:58]} 5. Qa4+ {[%clk 0:02:29]}  Nc6 {[%clk 0:02:57]} 6. a3 {[%clk 0:02:29]}  Bxc3+ {[%clk 0:02:56]} 7. bxc3 {[%clk 0:02:30]}  O-O {[%clk 0:02:56]} 8. Bf4 {[%clk 0:02:30]}  Ne4 {[%clk 0:02:53]} 9. e3 {[%clk 0:02:30]}  Nxc3 {[%clk 0:02:40]} 10. Qc2 {[%clk 0:02:30]}  Ne4 {[%clk 0:02:41]} 11. Bd3 {[%clk 0:02:31]}  Nf6 {[%clk 0:02:32]} 12. O-O {[%clk 0:02:29]}  h6 {[%clk 0:02:31]} 13. h3 {[%clk 0:02:28]}  Ne7 {[%clk 0:02:28]} 14. Rab1 {[%clk 0:02:11]}  c6 {[%clk 0:02:17]} 15. a4 {[%clk 0:01:52]}  Nf5 {[%clk 0:02:08]} 16. Rfc1 {[%clk 0:01:40]}  Qa5 {[%clk 0:01:29]} 17. Ne5 {[%clk 0:01:27]}  Rd8 {[%clk 0:01:16]} 18. g4 {[%clk 0:01:02]}  Nd6 {[%clk 0:01:14]} 19. c5 {[%clk 0:00:56]}  Nde8 {[%clk 0:00:41]} 20. g5 {[%clk 0:00:41]}  hxg5 {[%clk 0:00:39]} 21. Bxg5 {[%clk 0:00:42]}  Qc7 {[%clk 0:00:39]} 22. f4 {[%clk 0:00:38]}  Bd7 {[%clk 0:00:34]} 23. Kh1 {[%clk 0:00:38]}  Kf8 {[%clk 0:00:32]} 24. Rg1 {[%clk 0:00:38]}  Rdc8 {[%clk 0:00:28]} 25. Qg2 {[%clk 0:00:31]}  Ng8 {[%clk 0:00:18]} 26. Bh7 {[%clk 0:00:21]}  Ne7 {[%clk 0:00:18]} 27. Qg4 {[%clk 0:00:11]}  g6 {[%clk 0:00:08]} 28. Bh6+ {[%clk 0:00:08]}  Ng7 {[%clk 0:00:07]} 29. Bxg6 {[%clk 0:00:08]}  fxg6 {[%clk 0:00:06]} 30. Nxg6+ {[%clk 0:00:08]}  Nxg6 {[%clk 0:00:06]} 31. Bxg7+ {[%clk 0:00:07]}  Kxg7 {[%clk 0:00:03]} 32. Qxg6+ {[%clk 0:00:07]}  Kf8 {[%clk 0:00:04]} 33. Qf6+ {[%clk 0:00:08]} 1-0


[Site "https://www.chess.com"]

[Event "Titled Tuesday Blitz November 16 2021"]
[White "Yaksin, Oleg"]
[Black "Sjugirov, Sanan"]
[WhiteFideId "24105880"]
[BlackFideId "4189302"]
[WhiteElo "2256"]
[BlackElo "2653"]
[Result "0-1"]
[Round "03"]
[TimeControl "180+1"]
[Date "2021.11.16"]
[WhiteClock "0:00:06"]
[BlackClock "0:00:23"]

1. d4 {[%clk 0:02:59]}  Nf6 {[%clk 0:02:59]} 2. c4 {[%clk 0:02:59]}  e6 {[%clk 0:02:59]} 3. g3 {[%clk 0:02:59]}  d5 {[%clk 0:02:59]} 4. Nf3 {[%clk 0:02:59]}  h6 {[%clk 0:02:59]} 5. Bg2 {[%clk 0:02:57]}  Bd6 {[%clk 0:03:00]} 6. O-O {[%clk 0:02:57]}  O-O {[%clk 0:03:00]} 7. Nc3 {[%clk 0:02:57]}  Nc6 {[%clk 0:02:59]} 8. b3 {[%clk 0:02:46]}  Re8 {[%clk 0:02:59]} 9. Bb2 {[%clk 0:02:46]}  dxc4 {[%clk 0:02:58]} 10. bxc4 {[%clk 0:02:47]}  e5 {[%clk 0:02:58]} 11. Nb5 {[%clk 0:02:28]}  e4 {[%clk 0:02:46]} 12. Nxd6 {[%clk 0:02:27]}  cxd6 {[%clk 0:02:46]} 13. Nd2 {[%clk 0:02:20]}  e3 {[%clk 0:02:34]} 14. fxe3 {[%clk 0:02:15]}  Ng4 {[%clk 0:02:34]} 15. Ne4 {[%clk 0:01:23]}  Nxe3 {[%clk 0:02:30]} 16. Qd3 {[%clk 0:01:23]}  Nxg2 {[%clk 0:02:17]} 17. Kxg2 {[%clk 0:01:23]}  Qe7 {[%clk 0:02:14]} 18. Rf4 {[%clk 0:01:17]}  Bf5 {[%clk 0:02:03]} 19. Rxf5 {[%clk 0:00:46]}  Qxe4+ {[%clk 0:02:02]} 20. Kf2 {[%clk 0:00:46]}  Re7 {[%clk 0:01:29]} 21. d5 {[%clk 0:00:37]}  Qxd3 {[%clk 0:01:23]} 22. exd3 {[%clk 0:00:37]}  Nb4 {[%clk 0:01:23]} 23. Rd1 {[%clk 0:00:31]}  Rae8 {[%clk 0:01:22]} 24. Ba3 {[%clk 0:00:29]}  Re2+ {[%clk 0:01:18]} 25. Kg1 {[%clk 0:00:27]}  Nc2 {[%clk 0:01:03]} 26. Bc1 {[%clk 0:00:04]}  a5 {[%clk 0:00:50]} 27. Rf2 {[%clk 0:00:02]}  Nd4 {[%clk 0:00:49]} 28. Rdf1 {[%clk 0:00:02]}  Rxf2 {[%clk 0:00:44]} 29. Kxf2 {[%clk 0:00:01]}  Re2+ {[%clk 0:00:44]} 30. Kg1 {[%clk 0:00:02]}  Rxa2 {[%clk 0:00:44]} 31. Be3 {[%clk 0:00:02]}  Ne2+ {[%clk 0:00:42]} 32. Kh1 {[%clk 0:00:02]}  a4 {[%clk 0:00:32]} 33. c5 {[%clk 0:00:03]}  dxc5 {[%clk 0:00:31]} 34. d6 {[%clk 0:00:04]}  Kf8 {[%clk 0:00:31]} 35. Bxc5 {[%clk 0:00:04]}  Ke8 {[%clk 0:00:30]} 36. Rb1 {[%clk 0:00:05]}  Rc2 {[%clk 0:00:23]} 37. d4 {[%clk 0:00:05]}  Rc1+ {[%clk 0:00:23]} 38. Rxc1 {[%clk 0:00:05]}  Nxc1 {[%clk 0:00:24]} 39. Kg2 {[%clk 0:00:05]}  Nb3 {[%clk 0:00:24]} 40. Kf3 {[%clk 0:00:05]}  Nxc5 {[%clk 0:00:23]} 41. dxc5 {[%clk 0:00:06]}  a3 {[%clk 0:00:23]} 0-1


[Site "https://www.chess.com"]

[Event "Titled Tuesday Blitz November 16 2021"]
[White "vizumatv4hoda"]
[Black "Grieve, Harry"]
[BlackFideId "426520"]
[WhiteElo "2754"]
[BlackElo "2208"]
[Result "1-0"]
[Round "03"]
[TimeControl "180+1"]
[Date "2021.11.16"]
[WhiteClock "0:00:08"]
[BlackClock "0:00:07"]

1. e4 {[%clk 0:03:00]}  c5 {[%clk 0:02:59]} 2. c3 {[%clk 0:03:01]}  Nf6 {[%clk 0:02:59]} 3. e5 {[%clk 0:03:01]}  Nd5 {[%clk 0:02:59]} 4. d4 {[%clk 0:03:02]}  cxd4 {[%clk 0:03:00]} 5. Nf3 {[%clk 0:03:03]}  e6 {[%clk 0:03:00]} 6. cxd4 {[%clk 0:03:04]}  d6 {[%clk 0:03:01]} 7. Bc4 {[%clk 0:03:02]}  Be7 {[%clk 0:03:01]} 8. O-O {[%clk 0:03:02]}  O-O {[%clk 0:03:01]} 9. Qe2 {[%clk 0:03:03]}  b6 {[%clk 0:03:02]} 10. Nc3 {[%clk 0:03:03]}  Nxc3 {[%clk 0:03:01]} 11. bxc3 {[%clk 0:03:04]}  Bb7 {[%clk 0:03:00]} 12. Re1 {[%clk 0:03:04]}  Nd7 {[%clk 0:02:59]} 13. Bd3 {[%clk 0:03:04]}  Rc8 {[%clk 0:02:48]} 14. Bd2 {[%clk 0:02:58]}  Bxf3 {[%clk 0:02:27]} 15. Qxf3 {[%clk 0:02:57]}  dxe5 {[%clk 0:02:27]} 16. dxe5 {[%clk 0:02:58]}  Nc5 {[%clk 0:02:26]} 17. Re3 {[%clk 0:02:45]}  Bg5 {[%clk 0:02:16]} 18. Qh3 {[%clk 0:01:44]}  h6 {[%clk 0:01:29]} 19. Rg3 {[%clk 0:00:58]}  Bxd2 {[%clk 0:01:28]} 20. Rd1 {[%clk 0:00:59]}  Bf4 {[%clk 0:01:15]} 21. Bh7+ {[%clk 0:00:42]}  Kxh7 {[%clk 0:01:15]} 22. Rxd8 {[%clk 0:00:42]}  Rfxd8 {[%clk 0:01:15]} 23. Rxg7+ {[%clk 0:00:43]}  Kxg7 {[%clk 0:01:14]} 24. Qg4+ {[%clk 0:00:43]}  Bg5 {[%clk 0:01:14]} 25. h4 {[%clk 0:00:44]}  Rd5 {[%clk 0:00:27]} 26. hxg5 {[%clk 0:00:44]}  h5 {[%clk 0:00:22]} 27. Qxh5 {[%clk 0:00:17]}  Rh8 {[%clk 0:00:22]} 28. Qe2 {[%clk 0:00:18]}  Ne4 {[%clk 0:00:15]} 29. g3 {[%clk 0:00:13]}  Rd1+ {[%clk 0:00:08]} 30. Kg2 {[%clk 0:00:09]}  Nxc3 {[%clk 0:00:08]} 31. Qc2 {[%clk 0:00:08]}  Rc8 {[%clk 0:00:07]} 32. a4 {[%clk 0:00:08]}  a6 {[%clk 0:00:06]} 33. Qb3 {[%clk 0:00:08]}  b5 {[%clk 0:00:05]} 34. axb5 {[%clk 0:00:08]}  axb5 {[%clk 0:00:06]} 35. Qb4 {[%clk 0:00:09]}  Rc4 {[%clk 0:00:05]} 36. Qe7 {[%clk 0:00:09]}  Nd5 {[%clk 0:00:05]} 37. Qb7 {[%clk 0:00:09]}  b4 {[%clk 0:00:05]} 38. Qb8 {[%clk 0:00:09]}  Rc3 {[%clk 0:00:04]} 39. g6 {[%clk 0:00:09]}  fxg6 {[%clk 0:00:04]} 40. Qe8 {[%clk 0:00:08]}  Rc7 {[%clk 0:00:04]} 41. Qxe6 {[%clk 0:00:08]}  b3 {[%clk 0:00:04]} 42. Qg4 {[%clk 0:00:04]}  Rdc1 {[%clk 0:00:03]} 43. Qd4 {[%clk 0:00:04]}  Ne7 {[%clk 0:00:02]} 44. e6+ {[%clk 0:00:05]}  Kh7 {[%clk 0:00:03]} 45. Qh4+ {[%clk 0:00:05]}  Kg8 {[%clk 0:00:03]} 46. Qd4 {[%clk 0:00:05]}  Nf5 {[%clk 0:00:03]} 47. Qd8+ {[%clk 0:00:05]}  Kg7 {[%clk 0:00:04]} 48. Qb8 {[%clk 0:00:05]}  Rb1 {[%clk 0:00:04]} 49. Qxc7+ {[%clk 0:00:06]}  Kf6 {[%clk 0:00:04]} 50. Qf7+ {[%clk 0:00:06]}  Ke5 {[%clk 0:00:05]} 51. e7 {[%clk 0:00:07]}  Nxe7 {[%clk 0:00:05]} 52. Qxe7+ {[%clk 0:00:08]}  Kd4 {[%clk 0:00:06]} 53. Qf6+ {[%clk 0:00:08]}  Kd3 {[%clk 0:00:07]} 54. Qxg6+ {[%clk 0:00:08]} 1-0


[Site "https://www.chess.com"]

[Event "Titled Tuesday Blitz November 16 2021"]
[White "Ahmadzada, Ahmad"]
[Black "Levitskiy, Andrey"]
[WhiteFideId "13413007"]
[BlackFideId "14132885"]
[WhiteElo "2226"]
[BlackElo "2340"]
[Result "1-0"]
[Round "04"]
[TimeControl "180+1"]
[Date "2021.11.16"]
[WhiteClock "0:01:44"]
[BlackClock "0:00:03"]

1. b4 {[%clk 0:03:00]}  e5 {[%clk 0:02:59]} 2. Bb2 {[%clk 0:03:01]}  Bxb4 {[%clk 0:03:00]} 3. Bxe5 {[%clk 0:03:01]}  Nf6 {[%clk 0:02:59]} 4. e3 {[%clk 0:03:01]}  d5 {[%clk 0:02:54]} 5. c3 {[%clk 0:03:00]}  Be7 {[%clk 0:02:53]} 6. Nf3 {[%clk 0:03:00]}  O-O {[%clk 0:02:53]} 7. d4 {[%clk 0:03:00]}  c5 {[%clk 0:02:48]} 8. Bd3 {[%clk 0:03:00]}  Nc6 {[%clk 0:02:47]} 9. O-O {[%clk 0:02:58]}  Re8 {[%clk 0:02:28]} 10. Nbd2 {[%clk 0:02:57]}  Bd6 {[%clk 0:02:21]} 11. Bxf6 {[%clk 0:02:50]}  Qxf6 {[%clk 0:02:18]} 12. Bc2 {[%clk 0:02:27]}  Bf5 {[%clk 0:01:39]} 13. Bb3 {[%clk 0:02:18]}  Be4 {[%clk 0:01:04]} 14. Nxe4 {[%clk 0:02:11]}  dxe4 {[%clk 0:01:05]} 15. Nd2 {[%clk 0:02:11]}  cxd4 {[%clk 0:00:57]} 16. cxd4 {[%clk 0:02:10]}  Rad8 {[%clk 0:00:47]} 17. g3 {[%clk 0:02:10]}  Qf5 {[%clk 0:00:23]} 18. Kg2 {[%clk 0:01:58]}  h5 {[%clk 0:00:22]} 19. f3 {[%clk 0:01:58]}  exf3+ {[%clk 0:00:20]} 20. Rxf3 {[%clk 0:01:58]}  Qd3 {[%clk 0:00:04]} 21. Bxf7+ {[%clk 0:01:58]}  Kh8 {[%clk 0:00:04]} 22. Bxe8 {[%clk 0:01:56]}  Rxe8 {[%clk 0:00:05]} 23. Nb3 {[%clk 0:01:54]}  Qe4 {[%clk 0:00:04]} 24. Nd2 {[%clk 0:01:53]}  Qd3 {[%clk 0:00:04]} 25. Nb3 {[%clk 0:01:48]}  Qe4 {[%clk 0:00:04]} 26. Qb1 {[%clk 0:01:48]}  Qd5 {[%clk 0:00:04]} 27. Qg6 {[%clk 0:01:43]}  Rf8 {[%clk 0:00:04]} 28. e4 {[%clk 0:01:44]}  Qg8 {[%clk 0:00:03]} 29. Qxh5+ {[%clk 0:01:43]}  Qh7 {[%clk 0:00:03]} 30. Qxh7+ {[%clk 0:01:43]}  Kxh7 {[%clk 0:00:03]} 31. e5 {[%clk 0:01:44]} 1-0


[Site "https://www.chess.com"]

[Event "Titled Tuesday Blitz November 16 2021"]
[White "Al-Tarboush, Ward"]
[Black "Pour Agha Bala, Amirreza"]
[WhiteFideId "7601450"]
[BlackFideId "12572896"]
[WhiteElo "2276"]
[BlackElo "2313"]
[Result "0-1"]
[Round "04"]
[TimeControl "180+1"]
[Date "2021.11.16"]
[WhiteClock "0:00:21"]
[BlackClock "0:01:00"]

1. e4 {[%clk 0:03:00]}  c5 {[%clk 0:03:00]} 2. Nf3 {[%clk 0:03:01]}  d6 {[%clk 0:03:00]} 3. d4 {[%clk 0:03:02]}  cxd4 {[%clk 0:03:00]} 4. Nxd4 {[%clk 0:03:02]}  Nf6 {[%clk 0:03:01]} 5. Nc3 {[%clk 0:03:03]}  a6 {[%clk 0:03:00]} 6. h3 {[%clk 0:03:03]}  e5 {[%clk 0:02:58]} 7. Nde2 {[%clk 0:03:04]}  Be7 {[%clk 0:02:59]} 8. g4 {[%clk 0:03:03]}  Nc6 {[%clk 0:02:57]} 9. Bg2 {[%clk 0:03:04]}  Be6 {[%clk 0:02:56]} 10. Ng3 {[%clk 0:03:03]}  O-O {[%clk 0:02:51]} 11. O-O {[%clk 0:03:03]}  h6 {[%clk 0:02:50]} 12. Be3 {[%clk 0:03:02]}  Rc8 {[%clk 0:02:42]} 13. Qd2 {[%clk 0:03:01]}  b5 {[%clk 0:02:34]} 14. Rad1 {[%clk 0:02:57]}  Na5 {[%clk 0:02:32]} 15. b3 {[%clk 0:02:53]}  Nb7 {[%clk 0:02:31]} 16. Nf5 {[%clk 0:02:44]}  Nc5 {[%clk 0:02:24]} 17. Nxe7+ {[%clk 0:02:21]}  Qxe7 {[%clk 0:02:23]} 18. Qxd6 {[%clk 0:02:19]}  Qxd6 {[%clk 0:02:21]} 19. Rxd6 {[%clk 0:02:20]}  Nb7 {[%clk 0:02:11]} 20. Rd3 {[%clk 0:02:18]}  Nc5 {[%clk 0:02:10]} 21. Rd6 {[%clk 0:01:34]}  Nxb3 {[%clk 0:02:03]} 22. cxb3 {[%clk 0:01:33]}  Rxc3 {[%clk 0:02:03]} 23. Rxa6 {[%clk 0:01:33]}  Bd7 {[%clk 0:01:55]} 24. Bxh6 {[%clk 0:01:27]}  gxh6 {[%clk 0:01:52]} 25. Rxf6 {[%clk 0:01:27]}  Kg7 {[%clk 0:01:53]} 26. Rd6 {[%clk 0:01:26]}  Be6 {[%clk 0:01:51]} 27. Rfd1 {[%clk 0:01:24]}  b4 {[%clk 0:01:50]} 28. Rb6 {[%clk 0:01:22]}  Rc2 {[%clk 0:01:45]} 29. Rxb4 {[%clk 0:01:21]}  Rxa2 {[%clk 0:01:44]} 30. Rb5 {[%clk 0:01:21]}  Rc8 {[%clk 0:01:42]} 31. Rxe5 {[%clk 0:01:13]}  Rcc2 {[%clk 0:01:42]} 32. Rf1 {[%clk 0:01:13]}  Bxb3 {[%clk 0:01:39]} 33. Rf5 {[%clk 0:01:13]}  Rd2 {[%clk 0:01:31]} 34. Rc1 {[%clk 0:01:11]}  Be6 {[%clk 0:01:29]} 35. Rf4 {[%clk 0:01:11]}  Ra4 {[%clk 0:01:28]} 36. Rc7 {[%clk 0:01:09]}  Ra1+ {[%clk 0:01:26]} 37. Kh2 {[%clk 0:01:09]}  Raa2 {[%clk 0:01:26]} 38. Kg3 {[%clk 0:01:09]}  Ra4 {[%clk 0:01:23]} 39. h4 {[%clk 0:01:07]}  Ra5 {[%clk 0:01:21]} 40. Rf3 {[%clk 0:01:00]}  Re2 {[%clk 0:01:20]} 41. Rf4 {[%clk 0:00:48]}  Kg8 {[%clk 0:01:16]} 42. Bf3 {[%clk 0:00:44]}  Ra3 {[%clk 0:01:16]} 43. g5 {[%clk 0:00:33]}  Re1 {[%clk 0:01:13]} 44. gxh6 {[%clk 0:00:25]}  Rg1+ {[%clk 0:01:11]} 45. Kh2 {[%clk 0:00:26]}  Rg6 {[%clk 0:01:08]} 46. h7+ {[%clk 0:00:22]}  Kxh7 {[%clk 0:01:07]} 47. e5 {[%clk 0:00:23]}  Kg7 {[%clk 0:01:02]} 48. Be4 {[%clk 0:00:21]}  Rh3# {[%clk 0:01:00]} 0-1


[Site "https://www.chess.com"]